bitfinex/quotes_BTCUSD_20240727
["timestamp","ask_amount","ask_price","bid_price","bid_amount"]
[1722064170782,0.286443,68379.0,68378.0,0.29249]
[1722064171239,0.1402,68379.0,68378.0,0.30449]
[1722064171468,0.1402,68379.0,68378.0,0.31749]
[1722064171727,0.30938916,68379.0,68378.0,0.31749]
[1722064171970,0.16314616,68379.0,68378.0,0.36742199]
[1722064172219,0.16314616,68379.0,68378.0,0.31749]
[1722064173226,0.1402,68379.0,68378.0,0.31749]
[1722064174100,0.1402,68379.0,68378.0,0.36742199]
[1722064174527,0.1402,68379.0,68378.0,0.31749]
[1722064174793,0.1402,68379.0,68378.0,0.51366699]
[1722064175010,0.1402,68379.0,68378.0,0.36742199]
[1722064175226,0.1402,68379.0,68378.0,0.51366699]
[1722064175433,0.1402,68379.0,68378.0,0.56705605]
[1722064175610,0.1402,68379.0,68378.0,0.31749]
[1722064176061,0.1402,68379.0,68378.0,0.36742199]
[1722064176251,0.1402,68379.0,68378.0,0.31749]
[1722064176651,0.16314606,68379.0,68378.0,0.31749]
[1722064176874,0.16314606,68379.0,68378.0,0.91330105]
[1722064177081,0.16314606,68379.0,68378.0,2.20579205]
[1722064177325,0.1402,68379.0,68378.0,2.20579205]
[1722064177543,0.1402,68379.0,68378.0,1.91330105]
[1722064177766,0.1402,68379.0,68378.0,2.20579205]
[1722064177986,0.1402,68379.0,68378.0,2.49828305]
[1722064178491,0.1402,68379.0,68378.0,1.61538712]
[1722064178743,0.1402,68379.0,68367.0,0.00031097]
[1722064178744,0.52758522,68368.0,68367.0,0.00031097]
[1722064178940,0.0314,68368.0,68353.0,0.21114777]
[1722064179148,0.762735,68368.0,68367.0,0.29254]
[1722064179555,0.530201,68368.0,68367.0,0.29254]
[1722064179755,0.822735,68368.0,68367.0,0.29254]
[1722064180492,0.530201,68368.0,68367.0,0.29254]
[1722064180918,0.822735,68368.0,68367.0,0.29254]
[1722064181167,1.20705322,68368.0,68367.0,0.29254]
[1722064181372,1.21005322,68368.0,68367.0,0.29254]
[1722064181735,1.36031279,68368.0,68367.0,0.29254]
[1722064181937,1.38326421,68368.0,68367.0,0.29254]
[1722064182452,1.23300464,68368.0,68367.0,0.29254]
[1722064187159,1.27675084,68368.0,68367.0,0.29254]
[1722064187366,1.23300464,68368.0,68367.0,0.29254]
[1722064189471,1.21005322,68368.0,68367.0,0.29254]
[1722064190492,1.21917969,68368.0,68367.0,0.29254]
[1722064190896,1.53472634,68368.0,68367.0,0.29254]
[1722064191099,1.51171369,68368.0,68367.0,0.29254]
[1722064192339,1.61171369,68368.0,68367.0,0.29254]
[1722064192698,1.6576663,68368.0,68367.0,0.29254]
[1722064193960,1.63471369,68368.0,68367.0,0.29254]
[1722064194322,1.76598085,68368.0,68367.0,0.29254]
[1722064194520,1.8695669,68368.0,68367.0,0.29254]
[1722064194743,1.88667045,68368.0,68367.0,0.29254]
[1722064197278,1.77821967,68368.0,68367.0,0.29254]
[1722064197500,2.07075367,68368.0,68367.0,0.29254]
[1722064197713,2.07075367,68368.0,68367.0,0.25147598]
[1722064198124,2.21856348,68368.0,68367.0,0.25147598]
[1722064198818,2.03069732,68368.0,68367.0,0.25147598]
[1722064199030,2.19672427,68368.0,68367.0,0.25147598]
[1722064199634,2.19372427,68368.0,68367.0,0.25147598]
[1722064199848,2.19972427,68368.0,68367.0,0.25247598]
[1722064200183,2.0619395,68368.0,68367.0,0.25347598]
[1722064200585,2.0619395,68368.0,68343.0,0.07512979]
[1722064200586,0.146318,68344.0,68343.0,0.07512979]
[1722064200786,0.05,68350.0,68342.0,0.081124]
[1722064200787,0.14632,68343.0,68342.0,0.081124]
[1722064200994,0.438961,68343.0,68342.0,0.081124]
[1722064201197,0.438961,68343.0,68342.0,0.373764]
[1722064201581,0.438961,68343.0,68342.0,0.293564]
[1722064201788,0.14632,68343.0,68342.0,0.293564]
[1722064203044,0.438961,68343.0,68342.0,0.293564]
[1722064203437,0.439961,68343.0,68342.0,0.305564]
[1722064203821,0.001,68343.0,68342.0,0.35549599]
[1722064204719,0.0239561,68343.0,68342.0,0.35549599]
[1722064204919,0.3175971,68343.0,68342.0,0.316564]
[1722064205124,0.1712761,68343.0,68342.0,0.316564]
[1722064205725,0.4639171,68343.0,68342.0,0.316564]
[1722064207498,0.1712761,68343.0,68342.0,0.316564]
[1722064207696,0.0249561,68343.0,68342.0,0.36649599]
[1722064208496,0.0249561,68343.0,68342.0,0.316564]
[1722064208712,0.0249561,68343.0,68342.0,0.36649599]
[1722064208880,0.0249561,68343.0,68342.0,0.316564]
[1722064209110,0.0249561,68343.0,68342.0,0.36649599]
[1722064209818,0.0249561,68343.0,68342.0,0.462886]
[1722064210042,0.0249561,68343.0,68342.0,0.36649599]
[1722064210580,0.0249561,68343.0,68342.0,0.80577396]
[1722064210704,0.0249561,68343.0,68342.0,0.80546299]
[1722064211742,0.0249561,68343.0,68342.0,1.33982377]
[1722064211943,0.0249561,68343.0,68342.0,1.40592377]
[1722064212156,0.0249561,68343.0,68342.0,1.69856877]
[1722064212381,0.0249561,68343.0,68342.0,1.40592377]
[1722064212554,0.0249561,68343.0,68342.0,1.55618334]
[1722064212779,0.0249561,68343.0,68342.0,3.14239778]
[1722064212979,0.45077872,68363.0,68362.0,1.08914777]
[1722064213394,0.00088,68368.0,68367.0,0.04993199]
[1722064213704,0.00088,68368.0,68367.0,0.78127899]
[1722064213913,0.00088,68368.0,68367.0,1.23503277]
[1722064214330,0.00088,68368.0,68367.0,1.82443034]
[1722064214619,0.00188,68368.0,68367.0,1.82943034]
[1722064214958,0.00188,68368.0,68367.0,1.83343034]
[1722064215479,0.00088,68368.0,68367.0,1.82443034]
[1722064215691,0.00188,68368.0,68367.0,1.83343034]
[1722064216185,0.02482715,68368.0,68367.0,1.83343034]
[1722064216608,0.02482715,68368.0,68367.0,1.54089234]
[1722064217218,0.02482715,68368.0,68367.0,1.53589234]
[1722064217219,0.02382715,68368.0,68367.0,1.53589234]
[1722064217596,0.02382715,68368.0,68367.0,1.54989234]
[1722064217809,0.02382715,68368.0,68367.0,1.54589234]
[1722064218210,0.02382715,68368.0,68367.0,1.55889234]
[1722064219295,0.02382715,68368.0,68367.0,1.85143034]
[1722064219872,0.02382715,68368.0,68367.0,1.55889234]
[1722064221549,0.00088,68368.0,68367.0,1.55889234]
[1722064223495,0.00088,68368.0,68367.0,0.612409]
[1722064223727,0.00088,68368.0,68367.0,0.904947]
[1722064224149,0.00088,68368.0,68367.0,0.824447]
[1722064224736,0.02382818,68368.0,68367.0,1.03559477]
[1722064225090,0.00088,68368.0,68367.0,1.03559477]
[1722064226439,0.00088,68368.0,68367.0,0.87437899]
[1722064226569,0.00088,68368.0,68367.0,0.58184099]
[1722064228125,0.00088,68368.0,68367.0,0.38564]
[1722064228455,0.0238284,68368.0,68367.0,0.531909]
[1722064228744,0.00088,68368.0,68367.0,0.531909]
[1722064229146,0.00088,68368.0,68367.0,0.38564]
[1722064229307,0.00088,68368.0,68367.0,0.531909]
[1722064229502,0.00088,68368.0,68367.0,0.58184099]
[1722064230177,0.00088,68368.0,68367.0,0.43557199]
[1722064230383,0.00088,68368.0,68367.0,0.58184099]
[1722064231067,0.00088,68368.0,68367.0,1.40783277]
[1722064231425,0.00088,68368.0,68367.0,1.70037077]
[1722064231969,0.02382736,68368.0,68367.0,1.70037077]
[1722064233200,0.02382736,68368.0,68367.0,1.85063034]
[1722064236335,0.02382736,68368.0,68367.0,2.14316834]
[1722064236542,0.00088,68368.0,68367.0,2.14316834]
[1722064236759,0.00088,68368.0,68367.0,1.84661991]
[1722064237807,0.00088,68368.0,68367.0,1.81961991]
[1722064238183,0.00088,68368.0,68367.0,1.84761991]
[1722064238380,0.00088,68368.0,68367.0,1.83361991]
[1722064238560,0.00088,68368.0,68367.0,1.81965991]
[1722064238762,0.00088,68368.0,68367.0,1.83365991]
[1722064239769,0.0238267,68368.0,68367.0,1.83365991]
[1722064239970,0.0238267,68368.0,68367.0,1.63651214]
[1722064240172,0.0238267,68368.0,68367.0,1.84765991]
[1722064241096,0.00088,68368.0,68367.0,1.84765991]
[1722064241532,0.00088,68368.0,68367.0,1.96918507]
[1722064244445,0.02382694,68368.0,68367.0,1.96918507]
[1722064244648,0.00088,68368.0,68367.0,1.96918507]
[1722064246210,0.00088,68368.0,68367.0,1.95518507]
[1722064246463,0.00088,68368.0,68367.0,1.96918507]
[1722064246635,0.00088,68368.0,68367.0,1.95518507]
[1722064247082,0.00088,68368.0,68367.0,1.96918507]
[1722064248298,0.0238268,68368.0,68367.0,1.96918554]
[1722064248501,0.00088,68368.0,68367.0,1.96918554]
[1722064251381,0.00088,68368.0,68367.0,1.67664765]
[1722064251594,0.02382745,68368.0,68367.0,1.59694765]
[1722064252983,0.02382745,68368.0,68367.0,1.59694787]
[1722064257024,0.02382745,68368.0,68367.0,0.48802752]
[1722064257172,0.02507068,68368.0,68367.0,0.36650156]
[1722064257379,0.02507068,68368.0,68367.0,0.31656957]
[1722064257994,0.46387168,68368.0,68367.0,0.31656957]
[1722064258201,0.55165529,68368.0,68367.0,0.31656957]
[1722064258650,0.25787806,68368.0,68367.0,0.31656957]
[1722064259000,0.62601206,68368.0,68367.0,0.31656957]
[1722064259205,0.53822845,68368.0,68367.0,0.30256957]
[1722064259417,0.53822845,68368.0,68367.0,0.30956957]
[1722064259625,0.53822845,68368.0,68367.0,0.29556957]
[1722064259767,0.515281,68368.0,68367.0,0.29556957]
[1722064259963,0.515281,68368.0,68367.0,0.30656957]
[1722064260915,0.51591805,68368.0,68367.0,0.30656957]
[1722064261113,0.515281,68368.0,68367.0,0.29556957]
[1722064261513,0.515281,68368.0,68367.0,0.30256957]
[1722064262659,0.807815,68368.0,68367.0,0.30256957]
[1722064262987,0.83076467,68368.0,68367.0,0.30256957]
[1722064263550,0.515281,68368.0,68367.0,0.30256957]
[1722064263930,0.807815,68368.0,68367.0,0.30256957]
[1722064264130,0.515281,68368.0,68367.0,0.30256957]
[1722064264673,0.58884961,68368.0,68367.0,0.30256957]
[1722064264893,0.88138361,68368.0,68367.0,0.30256957]
[1722064265132,1.21270183,68368.0,68367.0,0.30256957]
[1722064265335,0.92016783,68368.0,68367.0,0.30256957]
[1722064265537,1.21270183,68368.0,68367.0,0.30256957]
[1722064265730,0.92016783,68368.0,68367.0,0.30256957]
[1722064266107,0.88138361,68368.0,68367.0,0.30256957]
[1722064266328,1.20143258,68368.0,68367.0,0.30256957]
[1722064266894,1.22456186,68368.0,68367.0,0.30256957]
[1722064267060,1.20161166,68368.0,68367.0,0.30256957]
[1722064268008,1.34871166,68368.0,68367.0,0.30256957]
[1722064268221,1.37171166,68368.0,68367.0,0.30256957]
[1722064268404,1.66424566,68368.0,68367.0,0.30256957]
[1722064268602,1.80232534,68368.0,68367.0,0.30256957]
[1722064269599,1.80232534,68368.0,68367.0,0.29556957]
[1722064269804,1.80308906,68368.0,68367.0,0.29656957]
[1722064270231,1.31982699,68368.0,68367.0,0.29656957]
[1722064270433,1.31982699,68368.0,68367.0,0.28856957]
[1722064270434,1.29582699,68368.0,68367.0,0.28856957]
[1722064270703,0.808815,68368.0,68367.0,0.29056957]
[1722064270907,0.858815,68368.0,68367.0,0.29056957]
[1722064271124,0.858815,68368.0,68367.0,0.28956957]
[1722064271311,0.857815,68368.0,68367.0,0.28956957]
[1722064271537,1.150349,68368.0,68367.0,0.28956957]
[1722064271711,1.152349,68368.0,68367.0,0.28956957]
[1722064271958,0.859815,68368.0,68367.0,0.28956957]
[1722064272157,0.517281,68368.0,68367.0,0.28956957]
[1722064272362,0.734215,68368.0,68367.0,0.28956957]
[1722064272559,0.859815,68368.0,68367.0,0.28956957]
[1722064272763,0.567281,68368.0,68367.0,0.28956957]
[1722064273711,0.565281,68368.0,68367.0,0.28856957]
[1722064273916,0.59023105,68368.0,68367.0,0.28856957]
[1722064274120,0.51463105,68368.0,68367.0,0.28856957]
[1722064274329,0.88276505,68368.0,68367.0,0.28856957]
[1722064274751,0.59023105,68368.0,68367.0,0.28856957]
[1722064275113,0.88276505,68368.0,68367.0,0.28856957]
[1722064275325,0.88276505,68368.0,68367.0,1.28856957]
[1722064276400,0.859815,68368.0,68367.0,1.28856957]
[1722064278075,0.567281,68368.0,68367.0,1.28856957]
[1722064278431,0.859815,68368.0,68367.0,1.28856957]
[1722064279683,0.88276564,68368.0,68367.0,1.28856957]
[1722064280074,0.859815,68368.0,68367.0,1.28856957]
[1722064283440,0.88276557,68368.0,68367.0,1.28856957]
[1722064283642,0.859815,68368.0,68367.0,1.28856957]
[1722064283839,0.89859922,68368.0,68367.0,1.28856957]
[1722064284311,0.859815,68368.0,68367.0,1.28856957]
[1722064284788,0.567281,68368.0,68367.0,1.28856957]
[1722064285438,0.274747,68368.0,68367.0,1.28856957]
[1722064285790,0.63293137,68368.0,68367.0,1.28856957]
[1722064285995,0.94734883,68368.0,68367.0,1.28856957]
[1722064286199,0.57921483,68368.0,68367.0,1.28856957]
[1722064286406,0.65481483,68368.0,68367.0,1.28856957]
[1722064287190,0.69088343,68368.0,68367.0,1.28856957]
[1722064287397,0.97030382,68368.0,68367.0,1.28856957]
[1722064287566,0.98342214,68368.0,68367.0,1.28856957]
[1722064288114,0.8958836,68368.0,68367.0,1.28856957]
[1722064289679,0.93466782,68368.0,68367.0,1.28856957]
[1722064289900,0.95638974,68368.0,68367.0,1.28856957]
[1722064290103,0.91760552,68368.0,68367.0,1.28856957]
[1722064291319,1.02702869,68368.0,68367.0,1.28856957]
[1722064291545,0.91760552,68368.0,68367.0,1.28856957]
[1722064291912,1.67993582,68368.0,68367.0,1.28856957]
[1722064292119,1.95295634,68368.0,68367.0,0.6562143]
[1722064292335,2.09776905,68368.0,68367.0,0.6562143]
[1722064293051,1.80523505,68368.0,68367.0,0.6562143]
[1722064293422,1.95301612,68368.0,68367.0,0.6562143]
[1722064294271,1.95301577,68368.0,68367.0,0.6562143]
[1722064294490,1.95301295,68368.0,68367.0,0.6562143]
[1722064294613,1.58487895,68368.0,68367.0,0.6562143]
[1722064294823,1.46445154,68368.0,68367.0,0.6562143]
[1722064295018,1.48740426,68368.0,68367.0,0.6562143]
[1722064296866,1.80711542,68368.0,68367.0,0.6562143]
[1722064297469,1.80763935,68368.0,68367.0,0.6562143]
[1722064297671,1.78046219,68368.0,68367.0,0.6562143]
[1722064301438,1.92833954,68368.0,68367.0,0.6562143]
[1722064301624,1.77919254,68368.0,68367.0,0.6562143]
[1722064301829,1.92545954,68368.0,68367.0,0.6562143]
[1722064302241,1.77750848,68368.0,68367.0,0.6562143]
[1722064302443,1.9276982,68368.0,68367.0,0.6562143]
[1722064303029,2.1276982,68368.0,68367.0,0.59677825]
[1722064303233,2.17673835,68368.0,68367.0,0.59677825]
[1722064303410,2.1276982,68368.0,68367.0,0.59677825]
[1722064303615,2.46927234,68368.0,68367.0,0.59677825]
[1722064304421,2.44649319,68368.0,68367.0,0.59677825]
[1722064304632,2.44649319,68368.0,68367.0,0.57426396]
[1722064305237,2.44649319,68368.0,68367.0,0.57518796]
[1722064305651,2.44733319,68368.0,68367.0,0.57518796]
[1722064305976,2.44733319,68368.0,68367.0,0.43223396]
[1722064307074,2.44733319,68368.0,68367.0,0.42123396]
[1722064307276,2.44733319,68368.0,68367.0,0.41283396]
[1722064307411,2.44733319,68368.0,68367.0,0.39183396]
[1722064307590,2.44733319,68368.0,68367.0,0.39083396]
[1722064307793,2.47028788,68368.0,68367.0,0.36683396]
[1722064307989,2.47028788,68368.0,68367.0,0.36783396]
[1722064308751,2.47028788,68368.0,68367.0,0.33791396]
[1722064308903,2.47028788,68368.0,68367.0,0.32291396]
[1722064309111,2.85077188,68368.0,68367.0,0.22117596]
[1722064309316,2.85077188,68368.0,68367.0,0.11341396]
[1722064309943,2.85077188,68368.0,68367.0,0.06215996]
[1722064310182,2.85077188,68368.0,68367.0,0.00365196]
[1722064310507,2.85077188,68368.0,68367.0,9.6e-07]
[1722064311044,2.85045183,68368.0,68367.0,9.6e-07]
[1722064311245,1.11298222,68346.0,68345.0,0.45077872]
[1722064311449,1.3504648,68346.0,68345.0,0.45077872]
[1722064311647,1.40565022,68344.0,68343.0,0.000924]
[1722064311953,1.41903328,68344.0,68343.0,0.000924]
[1722064312236,1.44203328,68344.0,68343.0,0.000924]
[1722064314067,1.44203328,68344.0,68343.0,0.004924]
[1722064314269,1.44203328,68344.0,68343.0,0.008924]
[1722064314477,1.5925823,68344.0,68343.0,0.008924]
[1722064314915,1.44232273,68344.0,68343.0,0.008924]
[1722064315315,1.44232273,68344.0,68343.0,0.152924]
[1722064315316,1.25807522,68344.0,68343.0,0.152924]
[1722064315641,1.20228573,68344.0,68343.0,0.152924]
[1722064315837,1.16350151,68344.0,68343.0,0.152924]
[1722064316021,1.17232692,68344.0,68343.0,0.152924]
[1722064316230,1.21111114,68344.0,68343.0,0.152924]
[1722064317565,1.6609982,68344.0,68343.0,0.008924]
[1722064319285,1.15851114,68344.0,68343.0,0.008924]
[1722064319653,1.23411114,68344.0,68343.0,0.008924]
[1722064320490,1.25707109,68344.0,68343.0,0.008924]
[1722064320694,1.24339858,68344.0,68343.0,0.008924]
[1722064320894,1.25654179,68344.0,68343.0,0.008924]
[1722064321378,1.40680136,68344.0,68343.0,0.008924]
[1722064321902,1.38388141,68344.0,68343.0,0.008924]
[1722064322535,1.67651841,68344.0,68343.0,0.008924]
[1722064322841,1.38388141,68344.0,68343.0,0.008924]
[1722064323690,1.6633752,68344.0,68343.0,0.008924]
[1722064323842,1.67624176,68344.0,68343.0,0.008924]
[1722064324731,1.67621206,68344.0,68343.0,0.008924]
[1722064325129,1.15771549,68344.0,68343.0,0.008924]
[1722064325325,1.23331549,68344.0,68343.0,0.008924]
[1722064326211,1.52595249,68344.0,68343.0,0.008924]
[1722064326389,1.54891277,68344.0,68343.0,0.008924]
[1722064326816,1.52595249,68344.0,68343.0,0.008924]
[1722064326994,1.57875641,68344.0,68343.0,0.008924]
[1722064327195,1.57902171,68344.0,68343.0,0.008924]
[1722064327404,1.52621779,68344.0,68343.0,0.008924]
[1722064327987,1.23358079,68344.0,68343.0,0.008924]
[1722064328184,1.19479657,68344.0,68343.0,0.153024]
[1722064328646,1.23358079,68344.0,68343.0,0.153024]
[1722064328800,1.23358079,68344.0,68343.0,0.15269941]
[1722064329643,1.25654158,68344.0,68343.0,0.15269941]
[1722064330471,1.22047863,68344.0,68343.0,0.15269941]
[1722064330602,1.23374651,68344.0,68343.0,0.15269941]
[1722064330812,1.22374651,68344.0,68343.0,0.15269941]
[1722064331013,1.22374651,68344.0,68343.0,0.15989941]
[1722064331619,1.28240051,68344.0,68343.0,0.15989941]
[1722064333218,1.28240051,68344.0,68343.0,0.07729941]
[1722064333724,1.3053611,68344.0,68343.0,0.07729941]
[1722064334081,1.30551076,68344.0,68343.0,0.01579941]
[1722064335859,1.60047033,68344.0,68343.0,0.01579941]
[1722064336011,1.53447033,68344.0,68343.0,0.01579941]
[1722064336211,1.82710733,68344.0,68343.0,0.01579941]
[1722064336411,1.95844118,68344.0,68343.0,0.01579941]
[1722064336644,2.05844118,68344.0,68343.0,0.01579941]
[1722064337505,1.55577033,68344.0,68343.0,0.01579941]
[1722064337857,1.40551076,68344.0,68343.0,0.01579941]
[1722064338426,1.34376595,68344.0,68343.0,0.01579941]
[1722064339054,1.38255017,68344.0,68343.0,0.01579941]
[1722064340856,1.36913263,68344.0,68343.0,0.01579941]
[1722064341131,1.38187154,68344.0,68343.0,0.01579941]
[1722064341387,1.26748732,68344.0,68343.0,0.01579941]
[1722064341588,0.79319632,68344.0,68343.0,0.15559941]
[1722064341736,0.81615664,68344.0,68343.0,0.15559941]
[1722064341937,0.89175664,68344.0,68343.0,0.15559941]
[1722064342139,0.86879632,68344.0,68343.0,0.15559941]
[1722064342558,0.79319632,68344.0,68343.0,0.15559941]
[1722064342864,0.86879632,68344.0,68343.0,0.15559941]
[1722064344839,0.89175587,68344.0,68343.0,0.15559941]
[1722064347456,1.02322811,68344.0,68343.0,0.15559941]
[1722064347605,1.02336103,68344.0,68343.0,0.15559941]
[1722064348377,0.89175587,68344.0,68343.0,0.15559941]
[1722064349178,0.85175587,68344.0,68343.0,0.15559941]
[1722064349352,0.55911887,68344.0,68343.0,0.2055314]
[1722064349675,0.02160432,68344.0,68343.0,0.2055314]
[1722064349803,0.16792232,68344.0,68343.0,0.2055314]
[1722064350451,0.15518341,68344.0,68343.0,0.2055314]
[1722064350800,0.74045741,68344.0,68343.0,0.15559941]
[1722064351208,0.75477136,68344.0,68343.0,0.15559941]
[1722064351412,0.74045741,68344.0,68343.0,0.15559941]
[1722064351726,0.44782041,68344.0,68343.0,0.15559941]
[1722064352272,0.74045741,68344.0,68343.0,0.15559941]
[1722064352684,0.44782041,68344.0,68343.0,0.15559941]
[1722064353293,0.44774697,68344.0,68343.0,0.15559941]
[1722064354083,0.47070514,68344.0,68343.0,0.15559941]
[1722064354487,0.76334214,68344.0,68343.0,0.15559941]
[1722064354910,0.47070514,68344.0,68343.0,0.15559941]
[1722064355107,0.76334214,68344.0,68343.0,0.15559941]
[1722064355307,0.80334214,68344.0,68343.0,0.15559941]
[1722064355508,0.94868829,68344.0,68343.0,0.15559941]
[1722064355716,0.81696693,68344.0,68343.0,0.15559941]
[1722064355892,1.24132734,68344.0,68343.0,0.15559941]
[1722064356290,1.10960393,68344.0,68343.0,0.15559941]
[1722064356517,0.81696693,68344.0,68343.0,0.15559941]
[1722064357050,1.10960393,68344.0,68343.0,0.15559941]
[1722064357218,1.14838815,68344.0,68343.0,0.15559941]
[1722064357552,1.27078696,68344.0,68343.0,0.01579941]
[1722064357762,1.29386083,68344.0,68343.0,0.01579941]
[1722064358676,1.27090266,68344.0,68343.0,0.01579941]
[1722064359818,1.14850385,68344.0,68343.0,0.01579941]
[1722064361086,1.14892747,68344.0,68343.0,0.01579941]
[1722064361644,1.11014325,68344.0,68343.0,0.01579941]
[1722064361840,1.17188765,68344.0,68343.0,0.01579941]
[1722064362045,1.14892747,68344.0,68343.0,0.01579941]
[1722064362250,1.11014325,68344.0,68343.0,0.01579941]
[1722064362488,1.14892747,68344.0,68343.0,0.01579941]
[1722064363210,1.11014325,68344.0,68343.0,0.01579941]
[1722064364045,1.08714325,68344.0,68343.0,0.09739941]
[1722064364460,1.07302097,68344.0,68343.0,0.09739941]
[1722064364757,1.08770005,68344.0,68343.0,0.15949941]
[1722064364913,1.11065956,68344.0,68343.0,0.15949941]
[1722064366196,1.14944378,68344.0,68343.0,0.15949941]
[1722064366609,1.12648427,68344.0,68343.0,0.01579941]
[1722064366732,1.29769509,68344.0,68343.0,0.01579941]
[1722064367163,1.14948427,68344.0,68343.0,0.01579941]
[1722064367926,1.14950154,68344.0,68343.0,0.01579941]
[1722064368817,1.29772567,68344.0,68343.0,0.01579941]
[1722064370326,1.59120267,68344.0,68343.0,0.01579941]
[1722064370525,1.74146224,68344.0,68343.0,0.01579941]
[1722064371256,1.42108219,68344.0,68343.0,0.00859941]
[1722064371483,1.58339957,68344.0,68343.0,0.00859941]
[1722064371686,1.56930957,68344.0,68343.0,0.00859941]
[1722064371828,1.58340065,68344.0,68343.0,0.00859941]
[1722064372653,1.43517327,68344.0,68343.0,0.00859941]
[1722064372871,1.43513967,68344.0,68343.0,0.00859941]
[1722064373073,1.43513386,68344.0,68343.0,0.00859941]
[1722064373652,1.51063386,68344.0,68343.0,0.00859941]
[1722064373988,1.61063386,68344.0,68343.0,0.00859941]
[1722064374509,1.63359555,68344.0,68343.0,0.00859941]
[1722064374718,1.63340489,68344.0,68343.0,0.00859941]
[1722064374857,1.6104432,68344.0,68343.0,0.00859941]
[1722064375058,1.76070277,68344.0,68343.0,0.00859941]
[1722064376514,1.6754432,68344.0,68343.0,0.00859941]
[1722064378080,1.69840543,68344.0,68343.0,0.00859941]
[1722064379306,1.6754432,68344.0,68343.0,0.00859941]
[1722064380817,1.9680802,68344.0,68343.0,0.00859941]
[1722064381097,1.67534088,68344.0,68343.0,0.00859941]
[1722064381412,2.11823745,68344.0,68343.0,0.00859941]
[1722064381797,1.96797788,68344.0,68343.0,0.00859941]
[1722064382052,1.53484088,68344.0,68343.0,0.00859941]
[1722064382619,1.55780353,68344.0,68343.0,0.00859941]
[1722064382854,1.53484088,68344.0,68343.0,0.00859941]
[1722064383794,1.8770674,68344.0,68343.0,0.00859941]
[1722064383933,1.5844304,68344.0,68343.0,0.00859941]
[1722064384118,1.52108219,68344.0,68343.0,0.00859941]
[1722064384321,1.53511432,68344.0,68343.0,0.00859941]
[1722064386186,1.55807672,68344.0,68343.0,0.00859941]
[1722064387298,1.53511432,68344.0,68343.0,0.00859941]
[1722064387708,1.52108219,68344.0,68343.0,0.00859941]
[1722064387905,1.53513453,68344.0,68343.0,0.00859941]
[1722064388584,1.6853941,68344.0,68343.0,0.00859941]
[1722064390619,1.53513453,68344.0,68343.0,0.00859941]
[1722064391033,1.52108219,68344.0,68343.0,0.00859941]
[1722064391197,1.53510391,68344.0,68343.0,0.00859941]
[1722064391397,1.584546,68344.0,68343.0,0.00859941]
[1722064394671,1.60752898,68344.0,68343.0,0.00859941]
[1722064394867,1.58456675,68344.0,68343.0,0.00859941]
[1722064395834,1.52108219,68344.0,68343.0,0.00859941]
[1722064396045,1.5839536,68344.0,68343.0,0.00859941]
[1722064398079,1.75708317,68344.0,68343.0,0.00859941]
[1722064398769,2.04972017,68344.0,68343.0,0.00859941]
[1722064399172,2.02675784,68344.0,68343.0,0.00859941]
[1722064401504,1.87523523,68344.0,68343.0,0.00859941]
[1722064402491,1.89819814,68344.0,68343.0,0.00859941]
[1722064402723,1.87523523,68344.0,68343.0,0.00859941]
[1722064404308,0.37147222,68332.0,68331.0,0.0607]
[1722064404517,0.51786122,68325.0,68324.0,0.02932]
[1722064404731,1.63285793,68325.0,68324.0,0.02932]
[1722064404938,1.55754753,68325.0,68324.0,0.02932]
[1722064405149,1.65614753,68325.0,68324.0,0.02932]
[1722064405344,1.39603322,68324.0,68323.0,0.02932]
[1722064405565,1.53206094,68324.0,68323.0,0.02932]
[1722064406065,1.55502794,68324.0,68323.0,0.02932]
[1722064406292,1.90528751,68324.0,68323.0,0.02932]
[1722064406479,1.73206094,68324.0,68323.0,0.02932]
[1722064406628,1.80766094,68324.0,68323.0,0.02932]
[1722064407033,1.80866094,68324.0,68323.0,0.04332]
[1722064407233,1.80866094,68324.0,68323.0,0.014]
[1722064408058,1.80673063,68324.0,68323.0,0.028]
[1722064408259,1.80673063,68324.0,68323.0,0.014]
[1722064408260,1.9569902,68324.0,68323.0,0.014]
[1722064409192,1.9569902,68324.0,68291.0,0.002]
[1722064409193,0.24,68299.0,68291.0,0.002]
[1722064409394,1.91242202,68299.0,68291.0,0.002]
[1722064409595,1.95979698,68299.0,68291.0,0.002]
[1722064409947,2.32822698,68299.0,68291.0,0.002]
[1722064410150,2.37488208,68299.0,68291.0,0.002]
[1722064410324,1.59665422,68292.0,68291.0,0.002]
[1722064410557,2.07616702,68292.0,68291.0,0.002]
[1722064410759,1.19177222,68290.0,68282.0,0.0607]
[1722064410932,1.88856102,68290.0,68282.0,0.0607]
[1722064411169,2.10106102,68290.0,68282.0,0.0607]
[1722064411367,2.25328665,68290.0,68282.0,0.0607]
[1722064411773,2.25328665,68290.0,68281.0,0.002]
[1722064411902,2.26183993,68290.0,68289.0,0.001924]
[1722064412309,2.55470793,68290.0,68289.0,0.001924]
[1722064412510,1.87429322,68282.0,68281.0,0.002]
[1722064412714,1.99729322,68282.0,68281.0,0.002]
[1722064412920,2.43129522,68282.0,68281.0,0.002]
[1722064413149,2.44439181,68282.0,68281.0,0.002]
[1722064413350,2.43129522,68282.0,68281.0,0.002]
[1722064413550,2.58155479,68282.0,68281.0,0.002]
[1722064414625,2.58255479,68282.0,68281.0,0.002]
[1722064415172,2.59151604,68282.0,68281.0,0.002]
[1722064415455,2.59051604,68282.0,68281.0,0.002]
[1722064415666,2.59351604,68282.0,68281.0,0.002]
[1722064416220,2.59851604,68282.0,68281.0,0.002]
[1722064416571,1.59697822,68275.0,68273.0,0.009064]
[1722064416684,2.29036022,68275.0,68273.0,0.009064]
[1722064417089,1.665712,68275.0,68273.0,0.009064]
[1722064417727,1.666712,68275.0,68274.0,0.012064]
[1722064418336,1.68969555,68275.0,68274.0,0.012064]
[1722064418515,1.83995512,68275.0,68274.0,0.012064]
[1722064418709,1.86470818,68275.0,68274.0,0.012064]
[1722064419091,2.15764018,68275.0,68274.0,0.012064]
[1722064419893,1.71444861,68275.0,68274.0,0.012064]
[1722064420409,1.67566439,68275.0,68274.0,0.012064]
[1722064421874,1.71444861,68275.0,68274.0,0.012064]
[1722064422073,1.73743223,68275.0,68274.0,0.012064]
[1722064422241,1.96859639,68275.0,68274.0,0.012064]
[1722064422447,1.83798796,68275.0,68274.0,0.012064]
[1722064423245,1.87677218,68275.0,68274.0,0.012064]
[1722064423392,1.83798796,68275.0,68274.0,0.012064]
[1722064425013,1.68772839,68275.0,68274.0,0.012064]
[1722064425211,1.72651261,68275.0,68274.0,0.012064]
[1722064425599,1.7494963,68275.0,68274.0,0.012064]
[1722064425809,1.71071208,68275.0,68274.0,0.012064]
[1722064426012,1.7494963,68275.0,68274.0,0.012064]